bitfinex-derivatives/quotes_ETHF0:USTF0_20250810
["timestamp","ask_amount","ask_price","bid_price","bid_amount"]
[1754836402865,0.47469,4213.0,4212.3,0.47476]
[1754836403076,0.47469,4213.0,4211.5,1.18714]
[1754836403077,0.2602,4213.0,4212.5,0.47474]
[1754836403270,0.73484,4213.4,4212.8,0.9554]
[1754836403471,0.47468,4213.1,4212.5,0.47473]
[1754836403669,0.47471,4212.8,4212.2,0.9554]
[1754836403878,0.9262,4213.2,4212.8,0.9554]
[1754836404071,0.666,4213.2,4212.7,0.9554]
[1754836404267,0.2602,4213.4,4212.7,0.9554]
[1754836404268,0.47464,4213.4,4212.7,0.9554]
[1754836404469,0.47472,4212.7,4212.4,0.2679]
[1754836404778,0.9262,4212.6,4212.5,0.6875]
[1754836405277,0.47469,4213.0,4212.4,0.9554]
[1754836405475,0.2602,4213.4,4212.8,0.4225]
[1754836405671,0.73484,4213.4,4212.9,0.5329]
[1754836405872,0.47467,4213.1,4212.8,0.4225]
[1754836406076,0.9262,4213.0,4212.9,0.9554]
[1754836406279,0.9262,4213.0,4212.5,0.265]
[1754836406467,1.26222919,4214.1,4212.0,0.6904]
[1754836406774,1.26222919,4214.1,4211.2,5.51018723]
[1754836406775,0.73487,4213.2,4213.1,0.9554]
[1754836407076,0.256,4213.0,4211.4,3.1130593]
[1754836407268,0.47475,4212.5,4211.4,3.1130593]
[1754836407469,0.47468,4213.1,4212.6,0.47473]
[1754836407675,0.73486,4213.3,4212.8,0.4747]
[1754836407974,0.73486,4213.3,4212.0,1.187]
[1754836407975,0.47466,4213.3,4213.0,0.47468]
[1754836408174,1.18632,4214.5,4213.2,0.47466]
[1754836408175,0.47461,4213.7,4213.2,0.47466]
[1754836408376,0.47463,4213.5,4213.2,0.6875]
[1754836408566,0.47466,4213.3,4212.9,0.47469]
[1754836408770,1.14066,4213.3,4212.9,0.47469]
[1754836408971,0.2602,4213.1,4212.6,0.47473]
[1754836409172,0.666,4213.2,4212.8,0.4747]
[1754836409373,0.2602,4213.4,4212.9,0.9554]
[1754836409573,0.2602,4213.3,4212.8,0.4747]
[1754836409771,0.47461,4213.7,4213.3,0.4225]
[1754836409974,0.47462,4213.6,4213.2,0.2679]
[1754836410174,0.2602,4213.9,4213.5,0.47462]
[1754836410373,0.4746,4213.8,4213.3,0.47465]
[1754836410873,0.47456,4214.2,4213.7,0.9554]
[1754836411074,0.47456,4214.2,4213.2,1.18666]
[1754836411273,0.47456,4214.2,4214.0,0.2679]
[1754836411474,0.47454,4214.4,4214.2,0.2679]
[1754836411680,0.9262,4214.5,4214.4,0.2679]
[1754836411681,0.73472,4214.5,4214.4,0.2679]
[1754836411881,0.73472,4214.5,4214.4,0.9554]
[1754836412285,1.18609,4215.3,4214.3,0.47453]
[1754836412477,0.47446,4215.0,4214.8,0.9554]
[1754836412686,0.88445,4215.1,4214.6,0.4745]
[1754836412981,0.666,4215.6,4215.2,0.9554]
[1754836413187,0.2602,4215.8,4215.3,0.4225]
[1754836413381,0.47438,4215.7,4215.5,0.2679]
[1754836413576,0.4744,4215.5,4215.2,0.6875]
[1754836413883,0.9262,4215.4,4215.2,0.6875]
[1754836414080,0.47443,4215.3,4215.0,0.2679]
[1754836414280,0.9262,4215.1,4215.0,0.9554]
[1754836414882,0.47443,4215.3,4215.2,0.9554]
[1754836417588,1.41343,4215.3,4215.2,0.9554]
[1754836417784,1.15393,4215.3,4215.2,0.9554]
[1754836417990,1.41343,4215.3,4215.2,0.9554]
[1754836418286,1.41343,4215.3,4215.2,0.6875]
[1754836418878,0.47445,4215.1,4214.8,0.47448]
[1754836419190,0.6795,4215.9,4215.0,0.2693]
[1754836419489,1.78397,4215.9,4215.8,0.6294]
[1754836419689,0.9,4215.9,4215.8,0.6294]
[1754836419896,0.9,4215.9,4215.8,1.5789]
[1754836420191,1.115,4216.2,4216.1,0.6294]
[1754836420489,1.5691,4216.2,4216.1,1.5789]
[1754836420792,1.5691,4216.2,4216.1,0.6294]
[1754836420983,0.2699,4216.1,4215.7,0.2693]
[1754836421193,0.4459,4215.8,4215.7,1.5789]
[1754836421590,1.5691,4215.8,4215.3,0.47442]
[1754836421787,1.5691,4215.7,4215.6,1.3096]
[1754836422188,1.5691,4215.7,4215.6,1.5789]
[1754836422585,0.7229,4216.3,4216.2,0.4486]
[1754836422885,2.04342,4216.3,4215.8,0.5446]
[1754836423080,0.6301,4216.0,4215.9,1.3096]
[1754836423289,1.5691,4216.0,4215.9,1.3096]
[1754836423688,0.176,4216.0,4215.9,1.5789]
[1754836423887,0.47428,4216.6,4216.2,0.6294]
[1754836423888,1.5691,4216.3,4216.2,0.6294]
[1754836424088,1.5691,4216.3,4216.2,1.5789]
[1754836425392,0.3531,4215.9,4215.8,1.5789]
[1754836425591,0.3531,4215.9,4215.0,1.2441948]
[1754836425592,0.939,4215.8,4215.3,0.6802]
[1754836425792,0.623,4215.4,4215.3,1.5789]
[1754836426092,1.5691,4215.4,4215.3,1.5789]
[1754836427196,2.04351,4215.4,4215.3,1.5789]
[1754836427494,1.5691,4215.0,4214.9,1.3096]
[1754836427687,2.04356,4215.0,4214.9,1.3096]
[1754836427882,1.5691,4214.7,4214.6,1.3096]
[1754836428099,1.5691,4214.7,4214.6,1.5789]
[1754836428893,0.277,4215.2,4215.1,0.92304]
[1754836429087,0.176,4215.6,4215.5,0.6294]
[1754836429291,0.47437,4215.9,4215.8,0.6294]
[1754836429589,2.04347,4215.9,4215.8,0.9047]
[1754836429789,2.04347,4215.9,4215.8,1.3096]
[1754836429984,2.04347,4215.9,4215.8,1.5789]
[1754836430191,1.5691,4215.9,4215.8,1.5789]
[1754836432692,1.5691,4215.9,4215.6,0.47439]
[1754836432891,0.6301,4215.7,4215.5,0.4744]
[1754836433092,1.5691,4215.6,4215.5,1.3791]
[1754836433294,0.6301,4215.3,4215.2,0.47443]
[1754836433493,1.5691,4215.3,4215.2,1.78403]
[1754836433694,1.5691,4215.3,4215.2,1.3096]
[1754836433894,0.6301,4215.3,4215.0,0.47445]
[1754836434104,0.6301,4214.7,4214.6,1.1039]
[1754836434303,1.5691,4214.7,4214.6,1.7841]
[1754836434500,1.5691,4214.7,4214.6,2.0534]
[1754836434702,1.5691,4214.7,4214.6,1.7841]
[1754836435000,1.5691,4214.7,4214.6,2.0534]
[1754836435202,1.5691,4214.7,4214.6,1.5789]
[1754836435401,0.6301,4214.5,4213.9,1.2441948]
[1754836436004,1.5691,4214.4,4214.3,1.3096]
[1754836436600,1.5691,4214.4,4214.3,1.5789]
[1754836437905,2.04363,4214.4,4214.3,1.3096]
[1754836438105,2.04363,4214.4,4214.2,1.2441948]
[1754836438309,0.2699,4214.3,4214.2,0.6294]
[1754836438598,1.5691,4214.2,4214.1,2.5537948]
[1754836438798,2.04365,4214.2,4214.1,1.3096]
[1754836439000,1.5691,4214.2,4214.1,1.3096]
[1754836439199,0.176,4214.3,4214.2,1.5789]
[1754836439399,1.5691,4214.3,4214.2,2.05345]
[1754836439603,0.9,4214.3,4214.2,2.05345]
[1754836439802,0.4746,4213.8,4213.5,1.7188148]
[1754836440004,1.5691,4213.6,4213.5,3.2977148]
[1754836440305,1.5691,4213.6,4213.5,2.8230948]
[1754836440506,1.10469,4213.9,4213.8,0.6294]
[1754836440703,1.10469,4213.9,4213.8,1.5789]
[1754836440704,2.04369,4213.9,4213.8,1.5789]
[1754836441002,2.04369,4213.9,4213.8,1.3096]
[1754836442101,2.04369,4213.9,4213.8,0.6294]
[1754836443897,1.5691,4213.9,4213.4,1.2441948]
[1754836444102,1.5691,4213.9,4212.7,1.18679]
[1754836444103,1.10479,4213.0,4212.9,0.4486]
[1754836444402,0.6301,4213.0,4212.9,1.0343]
[1754836444602,1.2992,4213.0,4212.9,1.5789]
[1754836444795,1.5691,4213.0,4212.9,0.3829]
[1754836445001,0.6691,4213.0,4212.5,1.2441948]
[1754836445205,2.04383,4212.6,4212.5,1.2441948]
[1754836445397,1.18661,4213.4,4212.1,0.369]
[1754836445398,1.5935,4212.2,4212.1,0.369]
[1754836445803,1.11429,4212.2,4211.9,1.2441948]
[1754836446004,2.0683,4212.0,4211.8,1.2441948]
[1754836446202,0.954,4211.9,4211.8,1.5035948]
[1754836446505,1.5935,4211.9,4211.8,0.2594]
[1754836446910,1.5935,4211.9,4211.8,0.6548]
[1754836447307,1.5935,4211.9,4211.8,0.7644]
[1754836447707,1.5935,4211.9,4211.8,0.2594]
[1754836448116,1.5935,4211.6,4211.5,0.7644]
[1754836448515,1.5935,4211.6,4211.5,0.2594]
[1754836448812,1.5935,4211.6,4210.8,1.3126948]
[1754836448813,0.6395,4211.3,4211.2,0.7644]
[1754836449016,1.5935,4211.3,4211.2,0.2594]
[1754836449310,0.6395,4210.6,4210.5,0.2594]
[1754836449518,1.18719,4211.4,4210.9,0.369]
[1754836449519,0.47487,4211.4,4210.9,0.369]
[1754836449822,1.0544,4211.3,4211.2,0.6548]
[1754836450012,1.5935,4211.3,4211.2,0.7644]
[1754836450317,1.5935,4211.3,4210.6,0.47496]
[1754836450318,0.47491,4211.0,4210.6,0.47496]
[1754836450518,0.6925,4210.9,4210.8,0.7644]
[1754836450813,1.52932,4210.9,4210.5,0.47496]
[1754836451020,0.9947,4210.7,4210.6,0.1096]
[1754836451316,0.2776,4210.4,4210.3,0.7644]
[1754836451520,1.5935,4210.4,4210.3,0.6548]
[1754836452010,1.5935,4210.4,4210.3,0.2594]
[1754836452319,1.5935,4210.4,4210.3,0.7644]
[1754836453022,1.5935,4210.1,4210.0,1.12982]
[1754836453319,1.5935,4210.1,4210.0,0.6548]
[1754836453815,1.5935,4209.7,4209.6,1.23946]
[1754836454010,1.5935,4209.7,4209.6,0.7644]
[1754836454519,1.5935,4209.5,4209.4,1.02151112]
[1754836454715,1.5935,4209.5,4209.4,1.28091112]
[1754836454918,1.5935,4209.5,4209.4,1.78591112]
[1754836455416,1.1786,4209.5,4209.4,1.78591112]
[1754836455917,1.1786,4209.5,4208.7,0.0685]
[1754836455918,0.6766,4209.1,4208.1,0.5306]
[1754836456119,0.6395,4209.4,4208.4,0.668]
[1754836456325,1.5935,4209.0,4208.9,1.2879]
[1754836456614,0.2774,4209.3,4208.4,0.4752]
[1754836456818,0.6923,4209.0,4208.5,1.40119]
[1754836457013,0.93668,4208.7,4208.6,0.1822]
[1754836457208,0.1839,4208.4,4208.3,1.5459]
[1754836457414,0.9169,4209.0,4208.9,1.5459]
[1754836457617,0.2617,4209.2,4208.9,1.5459]
[1754836457921,0.3619,4209.3,4209.2,0.6199]
[1754836458220,0.3619,4209.3,4209.2,1.5459]
[1754836458221,0.6393,4209.3,4209.2,1.5459]
[1754836458420,1.3318,4209.3,4209.2,1.5459]
[1754836458616,213.749,4213.3,4209.2,1.5459]
[1754836458617,0.7232,4209.6,4209.5,0.4416]
[1754836458817,0.9169,4209.6,4209.5,1.5459]
[1754836459016,1.0544,4209.1,4209.0,0.91674]
[1754836459323,1.5935,4209.1,4207.7,1.18821]
[1754836459617,0.6395,4209.1,4208.9,0.47514]
[1754836459818,1.1786,4208.6,4208.5,1.1096]
[1754836460023,1.18771,4209.5,4208.4,0.4416]
[1754836460024,1.5935,4208.5,4208.4,0.4416]
[1754836460227,1.5935,4208.5,4207.3,0.926]
[1754836460523,0.3619,4208.0,4207.9,1.09516]
[1754836460717,0.6393,4208.0,4207.9,2.02116]
[1754836461417,0.2774,4208.4,4208.3,0.47521]
[1754836461613,0.4149,4208.9,4208.8,1.5459]
[1754836461814,2.06862,4209.2,4209.1,1.2879]
[1754836462015,1.5935,4209.2,4209.1,1.5459]
[1754836462417,1.5935,4209.2,4209.1,0.4416]
[1754836463119,0.954,4209.2,4208.5,0.47519]
[1754836463315,1.3318,4208.6,4208.5,1.5459]
[1754836463513,1.5935,4208.6,4208.5,1.5459]
[1754836463724,0.2774,4209.0,4208.9,1.5459]
[1754836463922,0.6766,4209.5,4208.9,1.5459]
[1754836464119,1.80692,4209.2,4209.1,0.6199]
[1754836464320,1.80692,4209.2,4209.1,1.5459]
[1754836464622,1.5935,4209.2,4209.1,1.5459]
[1754836465123,1.5935,4209.2,4209.1,0.4416]
[1754836465322,0.47512,4209.1,4208.7,0.8779]
[1754836465523,1.3318,4209.0,4208.9,0.6199]
[1754836465718,1.3318,4209.0,4208.9,1.5459]
[1754836465924,1.3318,4209.0,4208.9,2.02104]
[1754836466125,1.3318,4209.0,4208.9,1.5459]
[1754836466823,2.06863,4209.0,4208.9,1.5459]
[1754836467123,0.4554,4208.9,4208.8,1.09506]
[1754836467318,0.4554,4208.9,4208.8,1.35306]
[1754836467518,0.6393,4208.9,4208.8,1.35306]
[1754836467721,0.6395,4208.9,4208.8,2.02106]
[1754836467930,1.3318,4208.9,4208.8,2.02106]
[1754836468427,1.80695,4208.9,4208.8,1.5459]
[1754836468623,1.3318,4208.9,4208.8,1.5459]
[1754836468828,0.1839,4208.9,4208.8,1.5459]
[1754836469024,0.73683,4209.1,4208.8,1.5459]
[1754836469025,0.2617,4210.4,4210.0,1.5459]
[1754836469221,1.79088,4210.4,4210.3,1.5459]
[1754836469416,0.88982,4210.9,4210.3,0.926]
[1754836469622,0.47486,4211.5,4211.1,1.40089]
[1754836469821,1.37606,4211.5,4211.4,0.1822]
[1754836470216,0.47481,4211.9,4211.4,0.926]
[1754836470524,0.7522,4212.0,4211.8,0.926]
[1754836470724,0.2774,4212.0,4211.9,0.926]
[1754836471822,0.6923,4212.0,4211.9,0.926]
[1754836472521,1.18677,4212.9,4210.3,1.18745]
[1754836472522,0.6923,4211.8,4210.3,1.18745]
[1754836472726,0.2774,4211.3,4210.1,0.926]
[1754836472924,0.4749,4211.1,4210.6,0.47495]
[1754836473136,0.954,4210.9,4210.8,0.668]
[1754836473724,0.954,4210.9,4210.8,0.2726]
[1754836474224,0.954,4210.9,4210.8,0.668]
[1754836474425,0.4749,4211.1,4210.9,0.5306]
[1754836474628,0.4749,4211.1,4211.0,0.926]
[1754836475527,1.18716,4211.5,4209.2,35.89677109]
[1754836475828,0.395,4211.4,4210.7,0.9265]
[1754836476031,0.395,4211.4,4210.8,0.2806]
[1754836476231,0.395,4211.4,4210.9,0.9265]
[1754836476232,0.4749,4211.1,4210.9,0.9265]
[1754836476432,0.86987,4211.4,4211.0,0.4749]
[1754836476627,0.47487,4211.4,4211.0,0.4749]
[1754836476824,0.47487,4211.4,4211.3,0.9265]
[1754836477230,0.75527,4211.4,4211.3,0.9265]
[1754836477525,1.41957,4211.4,4211.3,0.6706]
[1754836477727,1.41957,4211.4,4209.7,1.18763]
[1754836477728,0.6754,4211.1,4211.0,0.6706]
[1754836477922,0.2693,4210.9,4209.6,1.18765]
[1754836478124,0.47492,4210.9,4209.8,1.18761]
[1754836478325,0.2804,4210.8,4209.8,1.18761]
[1754836478525,0.2804,4210.8,4209.9,0.9265]
[1754836478732,0.9447,4210.6,4210.3,0.6706]
[1754836478936,1.18705,4211.9,4210.3,0.6706]
[1754836478937,0.9447,4210.4,4210.3,0.6706]
[1754836479332,0.4749,4211.1,4210.2,0.47499]
[1754836479628,0.9447,4210.8,4210.2,0.47499]
[1754836480027,0.47491,4211.0,4210.3,0.47498]
[1754836480225,0.6754,4210.6,4210.5,1.14556]
[1754836480428,0.6754,4210.6,4210.5,0.9265]
[1754836480627,0.9447,4210.7,4210.2,0.75559]
[1754836480923,1.18705,4211.9,4209.9,0.9265]
[1754836480924,0.9447,4210.5,4209.9,0.9265]
[1754836481128,0.9447,4209.7,4209.6,0.2806]
[1754836481328,0.9447,4209.7,4209.3,0.39]
[1754836481533,0.9447,4209.5,4209.4,0.6706]
[1754836481728,1.18754,4210.1,4209.1,0.9265]
[1754836481936,1.18762,4209.8,4209.1,0.6706]
[1754836482241,0.9447,4209.3,4208.9,0.47514]
[1754836482429,0.47507,4209.6,4209.1,0.6706]
[1754836482623,0.9447,4209.5,4209.3,0.2806]
[1754836482824,0.2804,4210.0,4209.5,0.39]
[1754836483029,1.26222919,4211.3,4209.5,0.6706]
[1754836483326,1.26222919,4211.3,4209.8,0.47504]
[1754836483327,0.9447,4210.4,4209.8,0.47504]
[1754836483532,0.9447,4210.4,4209.7,0.6706]
[1754836483832,0.9447,4210.4,4210.3,0.6459]
[1754836483833,0.6643,4210.4,4210.3,0.6459]
[1754836484129,0.395,4210.7,4210.6,0.47494]
[1754836484333,0.395,4210.7,4210.6,0.5365]
[1754836484533,0.9447,4210.7,4210.6,0.5365]
[1754836484729,0.6754,4210.9,4210.8,0.2806]
[1754836484931,0.9447,4210.9,4210.8,0.2806]
[1754836485130,0.9447,4210.8,4210.7,0.47494]
[1754836485334,0.9447,4210.8,4210.6,0.47495]
[1754836485533,0.9447,4210.7,4210.6,0.47495]
[1754836485937,0.9447,4210.7,4210.6,1.14555]
[1754836486138,0.9447,4210.7,4210.6,1.40145]
[1754836486937,0.9447,4210.7,4210.6,1.14555]
[1754836487941,0.9447,4210.7,4210.6,1.40145]
[1754836488238,0.9447,4210.7,4210.6,1.14555]
[1754836488427,0.9447,4210.7,4210.6,0.47495]
[1754836488632,0.9447,4210.7,4210.4,0.47498]
[1754836489034,0.47492,4210.9,4210.3,0.47498]
[1754836489337,0.9447,4210.4,4210.3,0.47498]
[1754836489633,0.6754,4210.3,4209.9,0.73093]
[1754836489837,0.2804,4210.1,4209.9,0.5365]
[1754836490026,1.18726,4211.1,4209.9,1.01153]
[1754836490027,0.9447,4210.0,4209.9,1.01153]
[1754836490231,0.9447,4210.0,4209.9,0.75563]
[1754836490432,0.47502,4210.0,4209.7,0.47505]
[1754836490639,0.6643,4209.8,4209.7,1.14565]
[1754836490938,0.6754,4209.8,4209.7,1.40155]
[1754836491134,0.2804,4209.8,4209.7,1.40155]
[1754836491335,0.2804,4210.0,4209.9,0.6459]
[1754836491534,0.6754,4210.0,4209.9,0.6459]
[1754836491728,0.2804,4210.0,4209.9,0.6459]
[1754836491927,0.2804,4210.0,4209.9,0.9265]
[1754836492442,0.6754,4210.7,4210.2,0.6706]
[1754836492635,0.74424,4210.8,4210.6,0.47495]
[1754836492834,1.02464,4210.8,4210.7,0.5365]
[1754836493034,1.41964,4210.8,4210.7,0.6706]
[1754836493435,0.9447,4210.8,4210.7,0.6706]
[1754836496836,0.9447,4211.1,4210.8,0.2559]
[1754836497041,1.2889,4211.1,4211.0,0.4469]
[1754836497233,1.76379,4211.1,4211.0,1.1175]
[1754836497435,1.76379,4211.1,4211.0,0.7275]
[1754836497635,2.04419,4211.1,4211.0,0.7275]
[1754836498135,2.04419,4211.1,4211.0,0.4469]
[1754836498332,2.04419,4211.1,4210.7,0.39]
[1754836498543,0.6246,4210.8,4210.7,1.5562]
[1754836498739,0.9447,4211.6,4210.8,0.6706]
[1754836498935,0.9447,4211.6,4210.9,0.9265]
[1754836499136,0.3626,4211.2,4211.1,1.10458]
[1754836499431,0.3626,4211.2,4211.1,2.03108]
[1754836499635,1.5693,4211.5,4211.4,1.5562]
[1754836500139,1.5693,4211.5,4211.4,1.3003]
[1754836500340,1.5693,4211.2,4211.1,1.59238]
[1754836500535,1.5693,4211.2,4211.1,1.77518]
[1754836500735,1.5693,4211.2,4211.1,0.4469]
[1754836501543,1.5693,4211.2,4211.1,1.5562]
[1754836504843,1.3,4211.6,4211.5,1.5562]
[1754836505239,1.5693,4211.6,4211.5,0.4469]
[1754836505546,1.5495,4211.3,4211.2,2.04106]
[1754836506343,0.6389,4211.7,4211.6,1.49652]
[1754836506541,1.2824,4211.7,4211.6,1.2955]
[1754836507044,1.5495,4211.7,4211.6,1.5662]
[1754836507240,0.47475,4212.3,4211.7,0.47482]
[1754836507444,1.2824,4211.8,4211.7,1.5662]
[1754836507649,1.5495,4211.8,4211.7,1.5662]
[1754836508546,1.5495,4211.8,4211.3,0.9582]
[1754836508742,1.5495,4211.3,4211.2,0.90377]
[1754836508944,1.5495,4211.3,4211.2,0.4289]
[1754836509243,1.5495,4211.3,4210.8,0.47491]
[1754836509244,0.6435,4211.2,4210.8,0.47491]
[1754836509542,1.5495,4210.9,4210.8,0.4289]
[1754836509747,1.5495,4210.6,4210.5,0.6996]
[1754836509949,1.5495,4210.6,4210.5,1.5662]
[1754836510342,1.2824,4210.6,4210.5,1.5662]
[1754836510745,1.26222919,4211.3,4210.4,0.47496]
[1754836510746,1.2824,4211.4,4211.3,1.5662]
[1754836510942,1.5495,4211.4,4211.3,1.5662]
[1754836511147,0.9015,4211.4,4211.3,1.5662]
[1754836511352,0.3604,4211.4,4211.3,1.5662]
[1754836511644,1.26222919,4212.7,4211.6,2.04103]
[1754836511645,0.6435,4212.0,4211.6,2.04103]
[1754836511841,0.2626,4212.0,4211.9,1.5662]
[1754836512044,1.5495,4212.0,4211.9,1.5662]
[1754836512537,1.2824,4212.0,4211.9,2.041]
[1754836512742,0.6435,4212.5,4211.9,2.041]
[1754836512942,0.3809,4212.5,4211.9,2.041]
[1754836513147,1.5495,4212.1,4212.0,1.5662]
[1754836513349,1.5495,4212.1,4212.0,1.2924]
[1754836513543,0.47473,4212.5,4211.9,1.5662]
[1754836513850,1.2824,4212.2,4212.1,1.5662]
[1754836514248,1.5495,4212.2,4212.1,1.5662]
[1754836514751,0.52074449,4213.3,4212.1,1.5662]
[1754836514752,0.9106,4213.2,4212.1,0.9582]
[1754836514947,0.3604,4212.5,4212.4,1.2924]
[1754836515145,0.623,4212.5,4212.4,1.5662]
[1754836515450,1.2824,4212.5,4212.4,1.5662]
[1754836515645,1.5495,4212.5,4212.4,1.5662]
[1754836516044,1.2824,4212.5,4212.4,1.5662]
[1754836516356,0.6389,4212.9,4212.8,0.608]
[1754836516543,1.2824,4212.9,4212.8,0.608]
[1754836516851,1.5495,4212.9,4212.8,0.608]
[1754836517048,1.5495,4212.9,4212.8,1.2924]
[1754836517361,1.5495,4212.9,4212.8,1.5662]
[1754836518347,1.2869,4212.9,4212.8,1.5662]
[1754836518752,1.5495,4212.9,4212.8,1.5662]
[1754836519943,0.2626,4213.3,4212.8,1.5662]
[1754836520149,1.5495,4213.3,4213.2,1.5662]
[1754836520643,0.3809,4214.0,4213.2,0.4289]
[1754836520853,0.3604,4213.4,4213.3,1.5662]
[1754836521050,1.2824,4213.4,4213.3,1.5662]
[1754836521554,0.9015,4213.4,4213.3,1.5662]
[1754836521750,0.1821,4213.5,4213.4,0.608]
[1754836521956,0.9106,4214.4,4213.5,0.9582]
[1754836522259,0.9015,4213.7,4213.6,2.0408]
[1754836523057,1.2824,4213.7,4213.6,1.5662]
[1754836523261,1.5495,4213.7,4213.6,1.5662]
[1754836523753,1.5495,4213.7,4213.6,1.2924]
[1754836523949,1.5495,4213.7,4213.6,1.5662]
[1754836525747,1.5495,4213.7,4213.6,1.2924]
[1754836525948,0.6389,4213.4,4213.3,1.2924]
[1754836526155,1.5495,4213.4,4213.3,1.2924]
[1754836526451,0.3809,4214.4,4214.3,0.257]
[1754836526655,1.0198,4214.4,4214.3,0.8787]
[1754836526958,1.0198,4214.6,4214.5,2.04069]
[1754836527161,0.3604,4214.6,4214.5,2.04069]
[1754836527456,0.4568,4214.9,4214.8,0.91056]
[1754836527663,1.1,4215.5,4215.3,0.47441]
[1754836527856,1.1,4215.5,4215.4,0.608]
[1754836528062,1.1,4215.5,4215.4,1.5662]
[1754836528263,1.2783,4215.5,4215.4,1.5662]
[1754836528459,2.6495,4215.5,4215.4,1.5662]
[1754836528666,0.648,4215.4,4214.8,0.4137]
[1754836528858,1.5495,4214.9,4214.8,1.2924]
[1754836529162,1.5495,4214.9,4214.8,1.5662]
[1754836529362,1.2824,4214.9,4214.8,1.5662]
[1754836529556,1.5495,4214.9,4214.8,1.5662]
[1754836529957,0.73706,4214.8,4214.2,0.47452]
[1754836530263,1.5495,4214.6,4214.5,1.5662]
[1754836530462,1.2824,4214.6,4214.5,1.5662]
[1754836531457,1.5495,4214.6,4214.5,0.8787]
[1754836532058,1.5495,4214.6,4214.5,0.6996]
[1754836532368,1.5495,4214.3,4214.2,1.5662]
[1754836532955,0.9106,4215.2,4214.3,0.47452]
[1754836533158,1.11337,4214.8,4214.7,0.608]
[1754836533366,2.02397,4214.8,4214.7,0.8787]
[1754836533567,0.65659,4214.6,4214.5,0.1719]
[1754836533862,1.11339,4214.6,4214.3,0.2707]
[1754836534168,1.5495,4214.4,4214.3,0.2707]
[1754836534363,1.5495,4214.4,4214.3,0.4426]
[1754836534666,1.5495,4214.4,4214.3,0.1719]
[1754836535463,2.024,4214.4,4214.3,0.1719]
[1754836535763,2.03118,4213.7,4213.6,0.9904]
[1754836536158,2.03118,4213.7,4213.6,1.267]
[1754836536362,0.9141,4213.7,4213.3,0.8213]
[1754836536563,0.6425,4213.4,4213.3,0.9904]
[1754836536762,1.5566,4213.4,4213.3,0.4316]
[1754836536967,2.03122,4213.4,4213.3,0.6007]
[1754836537168,0.6566,4213.4,4213.3,1.5476]
[1754836537365,0.4746,4213.6,4213.4,0.9469]
[1754836537569,0.4746,4213.6,4213.5,1.5476]
[1754836537570,0.8405,4213.6,4213.5,1.5476]
[1754836537770,1.1005,4213.6,4213.5,1.5476]
[1754836538272,1.7737,4213.6,4213.5,1.5476]
[1754836540271,2.0312,4213.6,4213.5,1.5476]
[1754836540663,1.5566,4213.6,4213.1,0.6663]
[1754836540972,1.11714,4213.2,4213.1,0.6007]
[1754836541273,1.11714,4213.2,4213.1,1.5476]
[1754836541475,2.03124,4213.2,4213.1,1.5476]
[1754836542069,1.3772,4212.7,4212.6,1.5476]
[1754836542464,1.2991,4212.7,4212.6,1.5476]
[1754836542672,0.9025,4212.7,4212.6,1.5476]
[1754836542872,0.3659,4212.7,4212.6,1.5476]
[1754836543365,0.47468,4212.9,4212.2,34.184]
[1754836543366,1.7769623,4213.6,4213.5,1.5476]
[1754836543566,2.0344623,4213.6,4213.5,1.267]
[1754836543971,0.0032623,4213.6,4213.5,1.5476]
[1754836544367,0.4745,4214.5,4214.4,0.6663]
[1754836544566,2.03106,4214.8,4214.7,1.5476]
[1754836545273,2.03106,4214.8,4214.7,1.267]
[1754836545475,0.47441,4215.3,4214.8,1.14076]
[1754836545772,1.3769,4215.4,4215.3,1.5476]
[1754836546067,0.65723,4215.1,4215.0,0.9904]
[1754836546271,2.03103,4215.1,4215.0,1.267]
[1754836546672,2.03103,4215.1,4215.0,1.5476]
[1754836546673,1.5566,4215.1,4215.0,1.5476]
[1754836546868,1.2991,4215.1,4215.0,1.5476]
[1754836547073,2.59688,4215.5,4215.4,1.5476]
[1754836547384,3.13098,4215.5,4215.4,0.1775]
[1754836547671,1.3738,4215.1,4214.3,0.3897]
[1754836547864,1.5566,4214.5,4214.4,1.5476]
[1754836548066,0.91725,4215.0,4214.9,0.1775]
[1754836548376,1.5566,4215.2,4215.1,1.5476]
[1754836548872,1.7259,4215.5,4215.4,0.6007]
[1754836549176,2.1225,4215.5,4215.4,1.5476]
[1754836549362,2.6566,4215.5,4215.4,1.5476]
[1754836549765,2.6566,4215.5,4215.4,1.267]
[1754836549977,2.6566,4215.5,4215.4,1.5476]
[1754836550574,2.6566,4215.5,4215.4,1.0979]
[1754836550874,2.6566,4215.5,4215.4,1.5476]
[1754836551076,1.4659,4215.5,4215.4,1.5476]
[1754836551373,0.6425,4215.4,4215.3,0.1775]
[1754836551769,0.6425,4215.4,4215.3,0.8773]
[1754836551975,1.5566,4215.4,4215.3,1.267]
[1754836552371,1.5566,4215.0,4214.9,0.6007]
[1754836552764,1.5566,4215.0,4214.9,1.267]
[1754836552969,1.5566,4215.4,4215.3,1.0895]
[1754836553272,1.5566,4215.4,4215.3,1.267]
[1754836553474,1.5566,4215.4,4215.3,0.7082]
[1754836553773,1.5566,4215.4,4215.3,0.4316]
[1754836554575,0.3659,4214.4,4214.3,1.3558]
[1754836554777,0.3659,4214.6,4214.5,0.6007]